Cogmind - Beta 12 @@@ ROGUE MODE // 2023.10.03 @ 23:04:19 Player: Blitzeker Result: Destroyed by H-55 Commando with Assault Rifle Performance ------------- Evolutions (2) 1000 Regions Visited (6) 1200 Robots Destroyed (79) 395 Value Destroyed (1622) 1622 Prototype IDs (6) 120 Alien Tech Used (0) 0 Bonus (211) 211 TOTAL SCORE: 4548 Bonus ------- High Alert Combat Kills 23 Follower Combat Kills 35 Aligned with FarCom 300 Friendly Fire -147 Cogmind --------- Core Integrity 0/550 Matter 151/300 Energy 91/100 System Corruption 2% Temperature Cool (10) Movement Core (300) Ox5 Location -8/Storage Parts ------- > --- POWER (2) -------- (None) > --- PROPULSION (2) --- Carbon-fiber Leg > --- UTILITY (5) ------ Disposable Heat Sink Small Storage Unit Advanced Visual Processing Unit Improved Signal Interpreter > --- WEAPON (2) ------- Enhanced Autogun Gauss Cannon > --- INVENTORY (8) ---- Light Ion Engine Flight Unit Advanced EMP Blaster Advanced EMP Blaster Advanced EMP Blaster Peak State ------------ > --- POWER ------------ Light Deuterium Engine Nuclear Core > --- PROPULSION ------- Improved Aluminum Leg Improved Aluminum Leg > --- UTILITY ---------- Small Storage Unit Advanced Targeting Computer Cloak of Protection Improved Light Armor Plating System Shield > --- WEAPON ----------- Heavy EM Shotgun Heavy EM Shotgun > --- INVENTORY -------- Light Ion Engine Improved Aluminum Leg Improved Aluminum Leg Advanced Visual Processing Unit Gauss Cannon Gauss Cannon Gauss Cannon Scythe [Rating: 38] Favorites ----------- Power Light Ion Engine Engine Light Ion Engine Power Core Light Nuclear Core Propulsion Improved Aluminum Leg Leg Improved Aluminum Leg Wheel Compact Wheel Flight Unit Flight Unit Utility Small Storage Unit Device Cloak of Protection Storage Small Storage Unit Processor Advanced Visual Processing Unit Hackware System Shield Protection Improved Light Armor Plating Weapon Improved EM Shotgun Energy Gun Improved EM Shotgun Ballistic Gun Enhanced Autogun Ballistic Cannon Gauss Cannon Launcher Advanced EMP Blaster Slashing Weapon Scythe Build | -11 -10 -10 -10 -9 -8 -8 ------- Run | Jun Mat Min Exi Min Mat Sto Slots Evolved 4 | . . . . . 4 . Power 1 | . . . . . 1 . Propulsion . | . . . . . . . Utility 3 | . . . . . 3 . Weapon . | . . . . . . . Parts Attached 60 | 7 5 2 2 6 31 7 Power 13 | 1 1 . . 1 10 . Engine 9 | 1 1 . . 1 6 . Core 4 | . . . . . 4 . Reactor . | . . . . . . . Propulsion 10 | 2 2 . . . 3 3 Treads . | . . . . . . . Leg 6 | . 2 . . . 3 1 Wheel 3 | 2 . . . . . 1 Hover . | . . . . . . . Flight 1 | . . . . . . 1 Utility 14 | 2 . 1 2 2 7 . Device 6 | 1 . 1 2 . 2 . Storage 3 | 1 . . . 1 1 . Processor 3 | . . . . . 3 . Hackware 1 | . . . . . 1 . Protection 1 | . . . . 1 . . Artifact . | . . . . . . . Weapon 23 | 2 2 1 . 3 11 4 Energy Gun 9 | 2 2 1 . 2 2 . Energy Cannon . | . . . . . . . Ballistic Gun 3 | . . . . . 2 1 Ballistic Cannon 5 | . . . . . 4 1 Launcher 4 | . . . . 1 1 2 Special Weapon . | . . . . . . . Impact Weapon . | . . . . . . . Slashing Weapon 2 | . . . . . 2 . Piercing Weapon . | . . . . . . . Special Melee Weapon . | . . . . . . . Unidentified Prototypes 6 | . 1 . 1 . 4 . Parts Lost 22 | . . . . 3 17 2 Power 6 | . . . . . 5 1 Propulsion 4 | . . . . . 3 1 Utility 4 | . . . . 1 3 . Weapon 8 | . . . . 2 6 . Highest Loss Streak 9 | . . . . 3 9 2 To Critical Strikes . | . . . . . . . Average Slot Usage (%) 94 | . 100 100 97 99 91 69 Engine 9 | . 14 14 14 13 6 7 Core 4 | . . . . . 8 . Leg 21 | . 25 28 28 28 17 2 Device 9 | . 14 14 11 12 6 9 Storage 11 | . 14 14 14 14 9 9 Processor 6 | . . . . . 11 18 Hackware 4 | . . . . . 8 . Protection 2 | . . . . 1 4 . Energy Gun 16 | . 28 28 28 26 8 . Ballistic Cannon 2 | . . . . . 4 2 Slashing Weapon 2 | . . . . . 4 . Naked Turns . | . . . . . . . Heaviest Build 38 | 12 15 15 22 15 38 23 Greatest Support 32 | 32 32 26 26 26 26 10 Greatest Overweight (x) 3 | 2 3 . . . 3 3 Average Overweight (x) . | . . . . . . 1 Largest Inventory Capacity 8 | 8 8 8 8 8 8 8 Average Capacity 7 | 7 8 8 8 8 8 8 Most Carried 8 | 7 8 8 8 8 8 6 Average Carried 6 | 4 7 7 7 7 4 5 Final Capacity 8 | 8 8 8 8 8 8 8 Final Carried 8 | 5 8 8 8 7 6 5 Class Distribution -------------------- 75% | Mutant 12% | Skirmisher 12% | Scavenger-Mutant Dominant Class ---------------- Mutant | -10/Materials Mutant | -10/Mines Mutant | -10/Exiles Skirmisher | -9/Mines Mutant | -8/Materials Mutant | -8/Storage Resources | -11 -10 -10 -10 -9 -8 -8 ----------- Run | Jun Mat Min Exi Min Mat Sto Matter Collected 1001 | 270 50 20 . 80 494 87 Remotely . | . . . . . . . Salvage Created 3048 | 85 397 84 . 121 1407 954 Parts 172 | 9 20 10 . 10 83 40 Haulers Intercepted 5 | . 2 . . . 2 1 Recyclers Shooed 3 | . . 1 . . 2 . Parts Field Recycled . | . . . . . . . Retrieved Matter . | . . . . . . . Parts Self-Destructed . | . . . . . . . Prevented . | . . . . . . . Kills | -11 -10 -10 -10 -9 -8 -8 ------- Run | Jun Mat Min Exi Min Mat Sto Combat Hostiles Destroyed 45 | . 5 . . 8 21 11 Melee 4 | . . . . . 4 . Guns 23 | . 3 . . 6 14 . Cannons 4 | . . . . . 2 2 AOE 13 | . 2 . . 2 1 8 Classes Destroyed 12 | 2 5 . . 2 1 2 Worker 9 | . 1 2 . . 6 . Builder 8 | . . . . 2 3 3 Tunneler 4 | 1 1 2 . . . . Hauler 5 | . 2 . . . 2 1 Recycler 8 | 1 1 . . . 4 2 Mechanic 1 | . . . . . . 1 Watcher 4 | . 1 . . . 3 . Swarmer 15 | . 3 . . 2 10 . Grunt 16 | . 2 . . . 8 6 Duelist 2 | . . . . . . 2 Sentry 6 | . . . . . 3 3 Assembled 6 | . . . . 6 . . Thug 1 | . . . . . . 1 Best Kill Streak 9 | 2 7 2 . 2 9 7 Combat Bots Only 5 | . 5 . . 2 5 4 Max Kills in Single Turn 6 | 1 2 1 . 2 3 6 Gunslinging 1 | . 1 . . . 1 . Exploded 3 | . 1 . . 2 1 3 Melee 1 | . . . . . 1 . Uniques/NPCs Destroyed . | . . . . . . . Combat | -11 -10 -10 -10 -9 -8 -8 -------- Run | Jun Mat Min Exi Min Mat Sto Damage Taken 3397 | . 233 . . 285 2485 394 Core 636 | . 41 . . 38 524 33 Absorbed by Shields . | . . . . . . . Regen/Repaired (Parts) 98 | . . . . . 98 . Core Remaining (%) 84 | 100 . . . 68 . . Volleys Fired 126 | 4 18 14 . 23 47 20 Largest 2 | 2 2 2 . 2 2 2 Hottest 100 | 80 90 90 . 90 100 84 Shots Fired 232 | 8 36 28 . 40 86 34 Gun 184 | 8 36 28 . 38 66 8 Cannon 30 | . . . . . 20 10 Launcher 18 | . . . . 2 . 16 Special . | . . . . . . . Kinetic 44 | . . . . . 26 18 Thermal 8 | 4 . . . 4 . . Explosive 2 | . . . . 2 . . Electromagnetic 178 | 4 36 28 . 34 60 16 Robot Hit Streak 20 | 1 11 7 . 4 20 6 Robot Miss Streak 4 | 1 4 3 . 3 4 2 Penetration Max . | . . . . . . . Secondary Targets 4 | . 2 . . . 2 . Max Gunslinging Chain 1 | . 1 . . . 1 . Shots Hit Robots 161 | 4 26 7 . 23 80 21 Core Hits 117 | 3 16 5 . 15 52 26 Critical Kills . | . . . . . . . Critical Parts Destroyed . | . . . . . . . Critical Strikes 5 | . . . . . 4 1 Blast 3 | . . . . . 2 1 Sever 2 | . . . . . 2 . Melee Attacks 14 | . . . . . 14 . Impact . | . . . . . . . Slashing 14 | . . . . . 14 . Piercing . | . . . . . . . Sneak Attacks 4 | . . . . . 4 . Combat Hostiles . | . . . . . . . Follow-up Attacks . | . . . . . . . Damage Inflicted 5119 | 44 521 119 . 474 2433 1528 Guns 2049 | 44 447 105 . 288 1061 104 Cannons 559 | . . . . . 424 135 Explosions 2024 | . 74 . . 186 475 1289 Melee 473 | . . . . . 473 . Ramming 14 | . . 14 . . . . Kinetic 729 | . . . . . 490 239 Thermal 920 | 20 74 . . 92 475 259 Explosive 94 | . . . . 94 . . Electromagnetic 2889 | 24 447 105 . 288 995 1030 Impact . | . . . . . . . Slashing 473 | . . . . . 473 . Piercing . | . . . . . . . Highest Corruption 2 | . . . . . 1 2 Average Corruption 1 | . . . . . 1 1 Corruption Purged . | . . . . . . . Corruption Blocked . | . . . . . . . Effects 6 | . . . . . 4 2 Message Errors 1 | . . . . . 1 . Energy Discharges 2 | . . . . . 2 . Data Loss (minor) 1 | . . . . . 1 . Weapon Failures 2 | . . . . . . 2 Overload Shots . | . . . . . . . Overflow Damage 174 | . . . . 60 79 35 Projectiles . | . . . . . . . Explosions 135 | . . . . 60 40 35 Melee 39 | . . . . . 39 . Knockbacks 4 | . . 1 . . 3 . Impact 1 | . . 1 . . . . Kinetic 3 | . . . . . 3 . Secondary . | . . . . . . . Self-Inflicted Damage 186 | . 40 . . 39 90 17 Shots 5 | . 1 . . 1 2 1 Rammed . | . . . . . . . Targets Rammed 1 | . . 1 . . . . Kicked 1 | . . 1 . . . . Crushed . | . . . . . . . Highest Temperature 571 | 36 144 90 . 120 571 29 Average Temperature 100 | 16 51 34 . 46 166 12 Received Heat Transfer 867 | . 48 . . . 747 72 Effects 13 | . . . . . 13 . Shutdowns 3 | . . . . . 3 . Matter Decay 2 | . . . . . 2 . Short Circuit 4 | . . . . . 4 . Damage (minor) 3 | . . . . . 3 . Damage (major) 1 | . . . . . 1 . Siege Activations . | . . . . . . . Robots Corrupted 2 | . 1 . . . . 1 Combat Hostiles 1 | . . . . . . 1 Parts Fried 17 | . 5 . . . 4 8 Impact Corruptions . | . . . . . . . Robots Melted . | . . . . . . . Combat Hostiles . | . . . . . . . Parts Melted 1 | . . . . . . 1 Heat Transferred 1250 | 50 150 . . 150 600 300 Parts Sabotaged . | . . . . . . . Parts Stolen . | . . . . . . . Parts Stripped . | . . . . . . . Power Chain Reactions 10 | . 2 . . 1 3 4 Missiles Intercepted . | . . . . . . . Alert | -11 -10 -10 -10 -9 -8 -8 ------- Run | Jun Mat Min Exi Min Mat Sto Peak Influence 449 | 10 228 131 . 99 260 449 Initial 53 | . 6 36 . . 38 53 Average 95 | 3 57 72 . 4 123 215 Maximum Alert Level 2 | . 1 . . . 1 2 Low Security (%) 91 | 100 91 100 . 100 89 40 Level 1 8 | . 8 . . . 10 53 Level 2 . | . . . . . . 5 Level 3 . | . . . . . . . Level 4 . | . . . . . . . Level 5 . | . . . . . . . High Security . | . . . . . . . Max Security . | . . . . . . . Squads Dispatched 6 | . 2 . . . 2 2 Investigation 1 | . 1 . . . . . Extermination . | . . . . . . . Reinforcement 3 | . 1 . . . 2 . Assault 2 | . . . . . . 2 Garrison . | . . . . . . . Intercept . | . . . . . . . Searches Triggered . | . . . . . . . Construction Impeded 1 | . . . . . 1 . Haulers Reinforced . | . . . . . . . Active Scanning Responses . | . . . . . . . Cargo Convoy Interrupts . | . . . . . . . Stealth | -11 -10 -10 -10 -9 -8 -8 --------- Run | Jun Mat Min Exi Min Mat Sto Distress Signals 3 | . 2 . . . . 1 Communications Jammed . | . . . . . . . Distress Signals . | . . . . . . . Times Spotted 67 | . 11 . . 11 25 20 Peak Tracking Total 9 | . 7 . . 4 6 9 Tactical Retreats 8 | . 1 . . 2 3 2 Traps | -11 -10 -10 -10 -9 -8 -8 ------- Run | Jun Mat Min Exi Min Mat Sto Traps Triggered 3 | . 1 . . . 1 1 Indirectly . | . . . . . . . Trap Hack Attempts . | . . . . . . . Triggered . | . . . . . . . Disarmed . | . . . . . . . Reprogrammed . | . . . . . . . Reused . | . . . . . . . Traps Extracted . | . . . . . . . Installed . | . . . . . . . Triggered . | . . . . . . . Machines | -11 -10 -10 -10 -9 -8 -8 ---------- Run | Jun Mat Min Exi Min Mat Sto Machines Disabled 10 | . 1 6 . 2 . 1 Max in Single Turn 2 | . 1 1 . 2 . 1 Machines Repaired . | . . . . . . . Machines Sabotaged . | . . . . . . . Overloaded Fab Kills . | . . . . . . . Hacking | -11 -10 -10 -10 -9 -8 -8 --------- Run | Jun Mat Min Exi Min Mat Sto Machines Accessed 15 | . 3 1 4 1 6 . Terminals 8 | . 3 . . 1 4 . Fabricators . | . . . . . . . Repair Stations 1 | . . . . . 1 . Recycling Units 1 | . . . . . 1 . Scanalyzers . | . . . . . . . Garrison Access . | . . . . . . . Total Hacks 49 | . 6 1 27 1 14 . Successful 41 | . 2 1 27 1 10 . Failed 8 | . 4 . . . 4 . Catastrophic 1 | . 1 . . . . . Database Lockouts . | . . . . . . . Manual 1 | . . . 1 . . . Terminals 13 | . 6 . . 1 6 . Fabricators . | . . . . . . . Repair Stations 4 | . . . . . 4 . Recycling Units 4 | . . . . . 4 . Scanalyzers . | . . . . . . . Garrison Access . | . . . . . . . Terminal Hacks 36 | . 2 1 27 1 5 . Record 28 | . . . 27 . 1 . Open Door 1 | . . 1 . . . . Unreport Threat 1 | . 1 . . . . . Locate Traps 2 | . 1 . . . 1 . Transport Status 1 | . . . . . 1 . Hauler Manifests 1 | . . . . . 1 . Zone Layout 2 | . . . . 1 1 . Fabricator Hacks . | . . . . . . . Repair Station Hacks 4 | . . . . . 4 . Scan Component 2 | . . . . . 2 . Repair 2 | . . . . . 2 . Recycling Unit Hacks 1 | . . . . . 1 . Report Inventory 1 | . . . . . 1 . Scanalyzer . | . . . . . . . Garrison Access Hacks . | . . . . . . . Unauthorized Hacks . | . . . . . . . Terminals . | . . . . . . . Fabricators . | . . . . . . . Repair Stations . | . . . . . . . Recycling Units . | . . . . . . . Scanalyzers . | . . . . . . . Garrison Access . | . . . . . . . Data Cores Recovered . | . . . . . . . Used . | . . . . . . . Hacking Detections 4 | . 3 . . . 1 . Full Trace Events . | . . . . . . . Feedback Events . | . . . . . . . Feedback Blocked . | . . . . . . . Robot Schematics Acquired . | . . . . . . . Robots Built . | . . . . . . . Authchips . | . . . . . . . Time . | . . . . . . . Total Robot Build Rating . | . . . . . . . Part Schematics Acquired . | . . . . . . . Parts Built . | . . . . . . . Authchips . | . . . . . . . Time . | . . . . . . . Total Part Build Rating . | . . . . . . . Parts Repaired 2 | . . . . . 2 . Time 64 | . . . . . 64 . Parts Recycled . | . . . . . . . Recycled Matter . | . . . . . . . Retrieved Matter . | . . . . . . . Retrieved Components . | . . . . . . . Parts Scanalyzed . | . . . . . . . Part Schematics Acquired . | . . . . . . . Parts Damaged . | . . . . . . . Bothacking | -11 -10 -10 -10 -9 -8 -8 ------------ Run | Jun Mat Min Exi Min Mat Sto Used RIF Installer . | . . . . . . . Robots Hacked . | . . . . . . . Non-combat . | . . . . . . . Combat . | . . . . . . . Robot Hacks Applied . | . . . . . . . Relay Couplers Released . | . . . . . . . Fabnet Peak Effective % . | . . . . . . . Robots Rewired . | . . . . . . . Allies Hacked . | . . . . . . . Hacks Repelled . | . . . . . . . Allies | -11 -10 -10 -10 -9 -8 -8 -------- Run | Jun Mat Min Exi Min Mat Sto Total Allies 4 | . . 2 . . . 2 Largest Group 2 | . . 2 1 . . 2 Highest-Rated Group 62 | . . 41 31 . . 62 Highest-Rated Ally 31 | . . 31 31 . . 31 Total Orders . | . . . . . . . Ally Attacks 27 | . . . . . . 27 Total Damage 316 | . . . . . . 316 Kills 1 | . . . . . . 1 Allies Corrupted . | . . . . . . . Allies Melted . | . . . . . . . Intel | -11 -10 -10 -10 -9 -8 -8 ------- Run | Jun Mat Min Exi Min Mat Sto Robot Analysis Total . | . . . . . . . Derelict Logs Recovered 3 | . . 2 . 1 . . Drone Launches . | . . . . . . . Drone Recoveries . | . . . . . . . Exploration | -11 -10 -10 -10 -9 -8 -8 ------------- Run | Jun Mat Min Exi Min Mat Sto Turns Passed 5389 | 87 255 681 651 749 2796 170 Spaces Moved 2436 | 61 150 526 538 429 661 71 Core 30 | 15 1 . . . 9 5 Treads . | . . . . . . . Legs 2280 | . 135 526 538 429 652 . Wheels 126 | 46 14 . . . . 66 Hover . | . . . . . . . Flight . | . . . . . . . Fastest Speed 50 | 50 100 120 120 120 120 95 Average Speed 129 | 90 118 120 120 120 156 115 Slowest Speed 200 | 150 200 120 120 120 200 200 Overloaded Moves . | . . . . . . . Propulsion Burnouts . | . . . . . . . Robots Hopped . | . . . . . . . Cave-ins Triggered . | . . . . . . . Exploration Rate (%) 52 | 4 32 98 94 87 42 11 Regions Visited 6 Branch Regions 4 Pre-discovered Areas 3 | . . 1 1 1 . . Known Exits Taken 1 | . . . . . 1 . Unknown Exits Taken 5 | 1 1 1 1 1 . . Scrap Searched 3 | . . 1 . 2 . . Spaces Dug . | . . . . . . . Terrain Destroyed 69 | . 5 . . 23 21 20 Melee . | . . . . . . . Projectile 9 | . . . . . 9 . AOE 60 | . 5 . . 23 12 20 Terrain Rammed . | . . . . . . . Walls Destroyed . | . . . . . . . Machines Disabled . | . . . . . . . Actions | -11 -10 -10 -10 -9 -8 -8 --------- Run | Jun Mat Min Exi Min Mat Sto Total 4438 | 83 193 548 544 624 2320 126 Wait 1715 | . 4 3 2 158 1524 24 Move 2430 | 60 149 525 537 428 660 71 Hop . | . . . . . . . Pick Up 55 | 11 10 1 . 5 25 3 Fast Attach 10 | 2 . . 2 1 5 . Attach 41 | 5 3 1 . 4 23 5 Detach 6 | . . . 1 . 4 1 Swap 10 | . 2 1 . 1 4 2 Drop 30 | 1 7 2 2 4 14 . Fire 126 | 4 18 14 . 23 47 20 Melee 14 | . . . . . 14 . Ram . | . . . . . . . Kick 1 | . . 1 . . . . Crush . | . . . . . . . Escape Stasis . | . . . . . . . Rewire . | . . . . . . . Trap . | . . . . . . . Miscellaneous . | . . . . . . . Route ------- -11/Junkyard -10/Materials -10/Mines (discovered 3 exits: [*Mat x2] / *Exi) -10/Exiles (discovered 2 exits: *Min x2) -9/Mines (discovered 2 exits: *Mat x2) -8/Materials (discovered 2 exits: [*Fac] / *Sto) -8/Storage History --------- Turn | Location | Event 10 | -11/Junkyard | Discovered new exit (range 16) 88 | -11/Junkyard | Entered Materials 322 | -10/Materials | Build established: Mutant 326 | -10/Materials | Discovered new exit (range 15) 343 | -10/Materials | Entered Mines 387 | -10/Mines | Met a Derelict who couldn't figure out how to use a Trap Extractor 443 | -10/Mines | Learned location of Recycling (-8) 534 | -10/Mines | Deemed a non-threat by the Exiles lab entrance 534 | -10/Mines | Discovered new exit (range 5) 665 | -10/Mines | Discovered new exit (range 11) 920 | -10/Mines | Discovered new exit (range 7) 1024 | -10/Mines | Entered Exiles 1024 | -10/Exiles | Accompanied by 1 ally 1045 | -10/Exiles | Discovered new exit (range 15) 1054 | -10/Exiles | Led the pair of lost Derelicts to a safe place 1074 | -10/Exiles | Met 8R-AWN 1100 | -10/Exiles | Met EX-HEX 1138 | -10/Exiles | Met EX-BIN 1164 | -10/Exiles | Aligned with FarCom system 1166 | -10/Exiles | Given EX-Vault access code 1222 | -10/Exiles | Opened EX-Vault 1230 | -10/Exiles | Found Prototype Device 1230 | -10/Exiles | Identified Cloak of Protection 1254 | -10/Exiles | Warned to stay clear of 0b10 Research branches 1287 | -10/Exiles | Met EX-DEC 1321 | -10/Exiles | Learned location of Zion (-7) 1472 | -10/Exiles | Visited The Gauntlet 1660 | -10/Exiles | Discovered new exit (range 14) 1675 | -10/Exiles | Left Exiles lab with Cloak of Protection 1675 | -10/Exiles | Entered Mines 1676 | -9/Mines | Learned location of Storage (-8) 1699 | -9/Mines | Assembled infested the area 1721 | -9/Mines | Discovered new exit (range 15) 1965 | -9/Mines | Received a Rocket Launcher from a helpful Derelict 1980 | -9/Mines | Build established: Skirmisher 2388 | -9/Mines | Discovered new exit (range 12) 2394 | -9/Mines | Lost 3 parts (1u2w) 2424 | -9/Mines | Entered Materials 2424 | -8/Materials | Evolved 4 slots: Power x1, Utility x3 2425 | -8/Materials | Identified exit to Storage 2719 | -8/Materials | Build established: Scavenger-Mutant 3044 | -8/Materials | Repaired Imp. Aluminum Leg 3078 | -8/Materials | Repaired Imp. Ion Engine 3404 | -8/Materials | Build established: Mutant 3802 | -8/Materials | Lost 9 parts (3p1n2u3w) 5193 | -8/Materials | Discovered new exit (range 20) 5195 | -8/Materials | Core integrity fell below 50% 5206 | -8/Materials | Core integrity fell below 20% 5220 | -8/Materials | Entered Storage 5234 | -8/Storage | Lost 6 parts (1p2n1u2w) 5234 | -8/Storage | Met a pair of Derelict thieves 5390 | -8/Storage | Destroyed by H-55 Commando with Assault Rifle Last Messages --------------- 05339_ Terrain Scanner melted. 05339_ U-05 Engineer destroyed. 05339_ Chain reaction triggered in Corrupted Lgt. Ion Engine. 05346_ Y-45 Defender IFF system glitched. 05346_ U-05 Engineer destroyed. 05346_ Lgt. Armor Plating fried. 05346_ Beam Rifle fried. 05346_ Y-45 Defender destroyed. 05364_ Ion Engine destroyed. 05367_ H-55 Commando IFF system glitched. 05367_ Slug penetrates Y-45 Defender. 05372_ Slug penetrates Heavy Doors. 05380_ Y-45 Defender destroyed. 05384_ Penetrated by Slug. 05384_ Wheel destroyed. 05385_ G-50 Soldier suffers critical hit (Blast). 05385_ G-50 Soldier destroyed. 05387_ H-55 Commando IFF system glitched. 05387_ Y-45 Defender destroyed. 05390_ Slug penetrates Reinforced Barrier. Map ----- +----------------------------------------------------+ | | | | | | | | | | | | | | | | | | | | | | | ????????????????????????????? | | ????????????????????????????? | | ????????????????????????????? | | ????????????????????????????? | | ????????????????????????????? | | ????????????????????????????? | | ????????????????????????????? | | ????????????????????????????? | | ??????????????#####?????????? | | ??????????????# #?????????? | | ??????????????# #??######?? | | ??????????????# ####!] ]#?? | | ??????????????# ##T#%]] #?? | | ??????????????# # "%!% #?? | | ??????????????# ;% %!%[@#?? | | ??????????????# i# "h #?? | | ??????????????+ # #! ]#?? | | ??????????????# #########?? | | ??????????????# #?????????? | | ??????????????# #?????????? | | ??????????????# #?????????? | | ??????????????# #?????????? | | ??????????????# ?????????? | | ??????????????#%[ #????????? | | ??????????????#!! = ????????? | | ###"""" #=#####% #???????? | | =% *%!=% [!|[ #???????? | | !][=[=!%= % !! / #???????? | | ][%%]%= % !%[ |##???????? | | #########/######/###????????? | | ??????? ????? !%* ?????????? | | ??????""????# ???????? | | ????????????# #??????? | | ????????????# #??????? | | ????????????# #??????? | | ????????????# #??????? | | ????????????# #??????? | | ????????????# #??????? | | ????????????#= #??????? | +----------------------------------------------------+ Best States ------------- Heat Dissipation 31 Coolant Potential 50 Energy Generation 23 Energy Capacity 405 Matter Stores 300 Matter Capacity 300 Sight Range 20 Robot Scan Range 14 Terrain Scan Density 10 Cloak Strength 5 Armor Coverage 150 Evasion (%) 55 Targeting Accuracy 8 Defensive Hacking 10 Item Schematics ----------------- None Robot Schematics ------------------ None Fabricated ------------ Nothing Alien Tech Used ----------------- None Achievements -------------- None Challenges ------------ None Game ------ Seed MolecularShieldBrace Manual? 0 Play Time 01:14:49 Cumulative 51.7 hours Start 2023.10.03 @ 02:55:12 End 2023.10.03 @ 23:04:19 Sessions 1 Manual Loads 0 Difficulty Rogue Special Mode None Game No. 28 Rogue 26 Adventurer 2 Explorer 0 Win Type - Total 1 Types 1/0/0/0/0/0/0/0/0 Lore% 40 Gallery% 34 Achievement% 33 Wizard Run 0 Options --------- ASCII 0 Keyboard 0 Movement Mouse Keybinds 0 Fullscreen 1 Font 24/Smallcaps Map View 76x50 Tactical HUD 1 Map Filters NONE Filters NONE Steam 1 RUN: 1939c403-cec2-4aa3-bf76-8679a21f2fcd